lending/lending_fUSD_20240112
["ID","MTS","AMOUNT","RATE_DAILY","PERIOD"]
[311355261,1705067457074,-1237.49,0.00023133,2]
[311355262,1705067457084,-720.97,0.00023133,2]
[311355263,1705067457094,-4021.3,0.00023133,2]
[311355264,1705067457103,-500.0,0.00023133,2]
[311355265,1705067457115,-500.0,0.00023133,2]
[311355266,1705067457125,-500.0,0.00023133,2]
[311355267,1705067457135,-391.30927735,0.00023133,2]
[311355268,1705067457145,-500.0,0.00023133,5]
[311355269,1705067457154,-1358.89,0.00023133,2]
[311355270,1705067457165,-2605.83,0.00023133,2]
[311355271,1705067457174,-556.6,0.00023133,2]
[311355272,1705067457183,-1356.18,0.00023133,2]
[311355273,1705067457193,-500.0,0.00023133,2]
[311355274,1705067457202,-500.0,0.00023133,2]
[311355275,1705067457212,-500.0,0.00023133,2]
[311355276,1705067457222,-519.89,0.00023133,2]
[311355277,1705067457231,-2784.68,0.00023133,2]
[311355278,1705067457242,-709.85,0.00023133,2]
[311355279,1705067457251,-500.0,0.00023133,2]
[311355280,1705067457261,-500.0,0.00023133,2]
[311355281,1705067457271,-2294.01,0.00023133,2]
[311355282,1705067457280,-500.0,0.00023133,2]
[311355283,1705067457290,-974.42,0.00023133,2]
[311355284,1705067457299,-500.0,0.00023133,2]
[311355285,1705067457309,-500.0,0.00023133,2]
[311355286,1705067457319,-1586.88,0.00023133,2]
[311355287,1705067457328,-1607.34,0.00023133,2]
[311355288,1705067457338,-500.0,0.00023133,2]
[311355289,1705067457350,-500.0,0.00023133,2]
[311355290,1705067457359,-1000.0,0.00023133,2]
[311355291,1705067457369,-500.0,0.00023133,2]
[311355292,1705067457379,-500.0,0.00023133,2]
[311355293,1705067457389,-892.72,0.00023133,2]
[311355294,1705067457399,-1286.7,0.00023133,2]
[311355295,1705067457409,-500.0,0.00023133,2]
[311355296,1705067457419,-500.0,0.00023133,2]
[311355297,1705067457428,-500.0,0.00023133,2]
[311355298,1705067457438,-500.0,0.00023133,2]
[311355299,1705067457448,-563.27,0.00023133,2]
[311355300,1705067457457,-500.0,0.00023133,2]
[311355301,1705067457467,-500.0,0.00023133,2]
[311355302,1705067457477,-500.0,0.00023133,2]
[311355303,1705067457486,-1002.65,0.00023133,2]
[311355304,1705067457496,-834.9,0.00023133,2]
[311355305,1705067457507,-500.0,0.00023133,2]
[311355306,1705067457519,-500.0,0.00023133,2]
[311355307,1705067457529,-13676.69,0.00023133,2]
[311355308,1705067457539,-1317.28,0.00023133,2]
[311355309,1705067457550,-500.0,0.00023133,2]
[311355310,1705067457560,-500.0,0.00023133,2]
[311355311,1705067457570,-500.0,0.00023133,2]
[311355312,1705067457580,-500.0,0.00023133,2]
[311355313,1705067457589,-771.85,0.00023133,2]
[311355314,1705067457600,-500.0,0.00023133,2]
[311355315,1705067457610,-1642.76,0.00023133,2]
[311355316,1705067457620,-601.82,0.00023133,2]
[311355317,1705067457632,-500.0,0.00023133,2]
[311355318,1705067457642,-500.0,0.00023133,2]
[311355319,1705067457653,-5698.97,0.00023133,2]
[311355320,1705067457662,-577.98,0.00023133,2]
[311355321,1705067457673,-1051.05,0.00023133,2]
[311355322,1705067457682,-852.82,0.00023133,2]
[311355323,1705067457691,-697.59,0.00023133,2]
[311355324,1705067457701,-500.0,0.00023133,2]
[311355325,1705067457710,-500.0,0.00023133,2]
[311355326,1705067457719,-1233.03,0.00023133,2]
[311355327,1705067457728,-500.0,0.00023133,2]
[311355328,1705067457738,-500.0,0.00023133,2]
[311355329,1705067457747,-500.0,0.00023133,2]
[311355330,1705067457757,-2538.76,0.00023133,2]
[311355331,1705067457769,-1405.14,0.00023133,2]
[311355332,1705067457779,-673.52,0.00023133,2]
[311355333,1705067457790,-2213.37,0.00023133,2]
[311355334,1705067457800,-500.0,0.00023133,2]
[311355335,1705067457809,-500.0,0.00023133,2]
[311355336,1705067457819,-14904.63,0.00023133,2]
[311355337,1705067457828,-1129.13,0.00023133,2]
[311355338,1705067457838,-1026.68,0.00023133,2]
[311355339,1705067457849,-500.0,0.00023133,2]
[311355340,1705067457859,-3836.53,0.00023133,2]
[311355341,1705067457868,-848.03,0.00023133,2]
[311355342,1705067457878,-500.0,0.00023133,2]
[311355343,1705067457887,-500.0,0.00023133,2]
[311355344,1705067457897,-500.0,0.00023133,2]
[311355345,1705067457907,-717.68,0.00023133,2]
[311355346,1705067457916,-1579.12,0.00023133,2]
[311355347,1705067457926,-500.0,0.00023133,2]
[311355348,1705067457935,-500.0,0.00023133,2]
[311355349,1705067457944,-500.0,0.00023133,2]
[311355350,1705067457954,-500.0,0.00023133,2]
[311355351,1705067457963,-500.0,0.00023133,2]
[311355352,1705067457972,-1016.89,0.00023133,2]
[311355353,1705067457982,-1273.06,0.00023133,2]
[311355354,1705067457992,-500.0,0.00023133,2]
[311355355,1705067458002,-1990.06,0.00023133,2]
[311355356,1705067458013,-500.0,0.00023133,2]
[311355357,1705067458024,-500.0,0.00023133,2]
[311355358,1705067458033,-642.71,0.00023133,2]
[311355359,1705067458044,-1962.61,0.00023133,2]
[311355360,1705067458054,-3858.89,0.00023133,2]
[311355361,1705067458063,-1731.39,0.00023133,2]
[311355362,1705067458072,-830.92,0.00023133,2]
[311355363,1705067458082,-1448.83,0.00023133,2]
[311355364,1705067458091,-500.0,0.00023133,2]
[311355365,1705067458101,-500.0,0.00023133,2]
[311355366,1705067458116,-500.0,0.00023133,2]
[311355367,1705067458125,-899.04,0.00023133,2]
[311355368,1705067458135,-500.0,0.00023133,2]
[311355369,1705067458145,-673.69,0.00023133,2]
[311355370,1705067458155,-2683.93,0.00023133,2]
[311355371,1705067458165,-500.0,0.00023133,2]
[311355372,1705067458174,-560.90763617,0.00023133,2]
[311355373,1705067458184,-699.58,0.00023133,2]
[311355374,1705067458194,-2940.73,0.00023133,2]
[311355375,1705067458204,-4923.06,0.00023133,2]
[311355376,1705067458214,-500.0,0.00023133,2]
[311355377,1705067458223,-500.0,0.00023133,2]
[311355378,1705067458232,-500.0,0.00023133,2]
[311355379,1705067458242,-660.73,0.00023133,2]
[311355380,1705067458251,-1814.82,0.00023133,2]
[311355381,1705067458261,-500.0,0.00023133,2]
[311355382,1705067458271,-1795.65,0.00023133,2]
[311355383,1705067458280,-500.0,0.00023133,2]
[311355384,1705067458290,-500.0,0.00023133,2]
[311355385,1705067458300,-500.0,0.00023133,2]
[311355386,1705067458310,-500.0,0.00023133,2]
[311355387,1705067458319,-640.3968696,0.00023133,2]
[311355388,1705067458329,-2878.51,0.00023133,2]
[311355389,1705067458339,-788.12,0.00023133,2]
[311355390,1705067458348,-500.0,0.00023133,5]
[311355391,1705067458359,-1029.85,0.00023133,2]
[311355392,1705067458368,-913.59,0.00023133,2]
[311355393,1705067458378,-500.0,0.00023134,2]
[311355394,1705067458387,-503.02401559,0.00023134,2]
[311355395,1705067458397,-500.0,0.00023134,2]
[311355396,1705067458407,-500.0,0.00023134,2]
[311355397,1705067458421,-500.0,0.00023134,2]
[311355398,1705067458431,-500.0,0.00023134,2]
[311355399,1705067458441,-500.0,0.00023134,2]
[311355400,1705067458450,-500.0,0.00023134,2]
[311355401,1705067458460,-500.0,0.00023134,2]
[311355402,1705067458469,-500.0,0.00023134,2]
[311355403,1705067458478,-500.0,0.00023134,2]
[311355404,1705067458488,-500.0,0.00023134,2]
[311355405,1705067458498,-500.0,0.00023134,2]
[311355406,1705067458507,-500.0,0.00023134,2]
[311355407,1705067458518,-500.0,0.00023134,2]
[311355408,1705067458527,-500.0,0.00023134,2]
[311355409,1705067458536,-500.0,0.00023134,2]
[311355410,1705067458546,-500.0,0.00023134,2]
[311355411,1705067458555,-500.0,0.00023134,2]
[311355412,1705067458564,-500.0,0.00023134,2]
[311355413,1705067458573,-500.0,0.00023134,2]
[311355414,1705067458583,-500.0,0.00023134,2]
[311355415,1705067458657,-500.0,0.00023134,2]
[311355416,1705067458667,-500.0,0.00023134,2]
[311355417,1705067458676,-500.0,0.00023134,2]
[311355418,1705067458685,-500.0,0.00023134,2]
[311355419,1705067458694,-500.0,0.00023134,2]
[311355420,1705067458703,-500.0,0.00023134,2]
[311355421,1705067458712,-500.0,0.00023134,2]
[311355422,1705067458722,-500.0,0.00023134,2]
[311355423,1705067458731,-500.0,0.00023134,2]
[311355424,1705067458741,-500.0,0.00023134,2]
[311355425,1705067458750,-500.0,0.00023134,2]
[311355426,1705067458760,-500.0,0.00023134,2]
[311355427,1705067458771,-500.0,0.00023134,2]
[311355428,1705067458780,-500.0,0.00023134,2]
[311355429,1705067458789,-500.0,0.00023134,2]
[311355430,1705067458799,-538.81028104,0.00023134,2]
[311355431,1705067458808,-500.0,0.00023134,2]
[311355432,1705067458817,-500.0,0.00023134,2]
[311355433,1705067458826,-500.0,0.00023134,2]
[311355434,1705067458836,-500.0,0.00023134,2]
[311355435,1705067458845,-500.0,0.00023134,2]
[311355436,1705067458856,-481.31177713,0.00023134,2]
[311355437,1705067458865,-500.0,0.00023134,2]
[311355438,1705067458874,-500.0,0.00023134,2]
[311355439,1705067458884,-500.0,0.00023134,2]
[311355440,1705067458893,-500.0,0.00023134,2]
[311355441,1705067458902,-500.0,0.00023134,2]
[311355442,1705067458911,-500.0,0.00023134,2]
[311355443,1705067458920,-500.0,0.00023134,2]
[311355444,1705067458930,-500.0,0.00023134,2]
[311355445,1705067458939,-500.0,0.00023134,2]
[311355446,1705067458948,-500.0,0.00023134,2]
[311355447,1705067458957,-500.0,0.00023134,2]
[311355448,1705067458966,-500.0,0.00023134,2]
[311355449,1705067458975,-500.0,0.00023134,2]
[311355450,1705067458985,-500.0,0.00023134,2]
[311355451,1705067458994,-500.0,0.00023134,2]
[311355452,1705067459003,-500.0,0.00023134,2]
[311355453,1705067459014,-500.0,0.00023134,2]
[311355454,1705067459023,-500.0,0.00023134,2]
[311355455,1705067459034,-500.0,0.00023134,2]
[311355456,1705067459043,-500.0,0.00023134,2]
[311355457,1705067459052,-500.0,0.00023134,2]
[311355458,1705067459061,-500.0,0.00023134,2]
[311355459,1705067459070,-500.0,0.00023134,2]
[311355460,1705067459080,-500.0,0.00023134,2]
[311355461,1705067459089,-500.0,0.00023134,2]
[311355462,1705067459098,-500.0,0.00023134,2]
[311355463,1705067459108,-500.0,0.00023134,2]
[311355464,1705067459117,-500.0,0.00023134,2]
[311355465,1705067459128,-500.0,0.00023134,2]
[311355466,1705067459139,-500.0,0.00023134,2]
[311355467,1705067459148,-500.0,0.00023134,2]
[311355468,1705067459157,-367.14829251,0.00023134,2]
[311355469,1705067459166,-500.0,0.00023134,2]
[311355470,1705067459176,-500.0,0.00023134,2]
[311355471,1705067459185,-500.0,0.00023134,2]
[311355472,1705067459194,-500.0,0.00023134,2]
[311355473,1705067459203,-500.0,0.00023134,2]
[311355474,1705067459212,-500.0,0.00023134,2]
[311355475,1705067459221,-500.0,0.00023134,2]
[311355476,1705067459231,-500.0,0.00023134,2]
[311355477,1705067459241,-500.0,0.00023134,2]
[311355478,1705067459250,-500.0,0.00023134,2]
[311355479,1705067459259,-500.0,0.00023134,2]
[311355480,1705067459270,-500.0,0.00023134,2]
[311355481,1705067459281,-500.0,0.00023134,2]
[311355482,1705067459290,-500.0,0.00023134,2]
[311355483,1705067459299,-500.0,0.00023134,2]
[311355484,1705067459308,-500.0,0.00023134,2]
[311355485,1705067459318,-532.55,0.00023134,2]
[311355486,1705067459327,-500.0,0.00023134,2]
[311355487,1705067459336,-500.0,0.00023134,2]
[311355488,1705067459345,-571.03,0.00023134,2]
[311355489,1705067459355,-500.0,0.00023134,2]
[311355490,1705067459364,-500.0,0.00023134,2]
[311355491,1705067459373,-500.0,0.00023134,2]
[311355492,1705067459383,-500.0,0.00023134,2]
[311355493,1705067459392,-500.0,0.00023134,2]
[311355494,1705067459401,-500.0,0.00023134,2]
[311355495,1705067459411,-500.0,0.00023134,2]
[311355496,1705067459421,-500.0,0.00023134,2]
[311355497,1705067459430,-500.0,0.00023134,2]
[311355498,1705067459440,-500.0,0.00023134,2]
[311355499,1705067459450,-500.0,0.00023134,2]
[311355500,1705067459459,-250.0,0.00023134,2]
[311355501,1705067459469,-500.0,0.00023134,2]
[311355502,1705067459478,-500.0,0.00023134,2]
[311355503,1705067459487,-500.0,0.00023134,2]
[311355504,1705067459496,-500.0,0.00023134,2]
[311355505,1705067459506,-500.0,0.00023134,2]
[311355506,1705067459517,-500.0,0.00023134,2]
[311355507,1705067459526,-500.0,0.00023134,2]
[311355508,1705067459535,-348.2,0.00023134,2]
[311355509,1705067459545,-500.0,0.00023134,2]
[311355510,1705067459554,-500.0,0.00023134,2]
[311355511,1705067459563,-500.0,0.00023134,2]
[311355512,1705067459572,-500.0,0.00023134,2]
[311355513,1705067459582,-500.0,0.00023134,2]
[311355514,1705067459591,-500.0,0.00023134,2]
[311355515,1705067459600,-500.0,0.00023134,2]
[311355516,1705067459609,-500.0,0.00023134,2]
[311355517,1705067459618,-500.0,0.00023134,2]
[311355518,1705067459628,-500.0,0.00023134,2]
[311355519,1705067459637,-617.06,0.00023134,2]
[311355520,1705067459647,-500.0,0.00023134,2]
[311355521,1705067459656,-500.03,0.00023134,2]
[311355522,1705067459665,-500.0,0.00023134,2]
[311355523,1705067459674,-900.49,0.00023134,2]
[311355524,1705067459684,-500.0,0.00023134,2]
[311355525,1705067459693,-500.0,0.00023134,2]
[311355526,1705067459702,-500.0,0.00023134,2]
[311355527,1705067459712,-500.0,0.00023134,2]
[311355528,1705067459721,-160.98,0.00023134,2]
[311355529,1705067459730,-529.94387919,0.00023134,2]
[311355530,1705067459740,-500.0,0.00023134,2]
[311355531,1705067459749,-500.0,0.00023134,2]
[311355532,1705067459758,-492.1680824,0.00023134,2]
[311355533,1705067459768,-500.0,0.00023134,2]
[311355534,1705067459777,-500.0,0.00023134,2]
[311355535,1705067459786,-580.22,0.00023134,2]
[311355536,1705067459795,-500.0,0.00023134,2]
[311355537,1705067459805,-500.0,0.00023134,2]
[311355538,1705067459814,-500.0,0.00023134,2]
[311355539,1705067459823,-500.0,0.00023134,2]
[311355540,1705067459832,-500.0,0.00023134,2]
[311355541,1705067459841,-500.0,0.00023134,2]
[311355542,1705067459850,-500.0,0.00023134,2]
[311355543,1705067459859,-500.0,0.00023134,2]
[311355544,1705067459868,-500.0,0.00023134,2]
[311355545,1705067459877,-500.0,0.00023134,2]
[311355546,1705067459887,-500.0,0.00023134,2]
[311355547,1705067459896,-269.0,0.00023134,2]
[311355548,1705067459905,-500.0,0.00023134,2]
[311355549,1705067459914,-642.46,0.00023134,2]
[311355550,1705067459923,-500.0,0.00023134,2]
[311355551,1705067459932,-988.76,0.00023134,2]
[311355552,1705067459941,-500.0,0.00023134,2]
[311355553,1705067459950,-500.0,0.00023134,2]
[311355554,1705067459960,-500.0,0.00023134,2]
[311355555,1705067459969,-500.0,0.00023134,2]
[311355556,1705067459978,-500.0,0.00023134,2]
[311355557,1705067459987,-536.8,0.00023134,2]
[311355558,1705067459996,-500.0,0.00023134,2]
[311355559,1705067460005,-676.74,0.00023134,2]
[311355560,1705067460015,-594.36,0.00023134,2]
[311355561,1705067460025,-500.0,0.00023134,2]
[311355562,1705067460034,-500.0,0.00023134,2]
[311355563,1705067460043,-500.0,0.00023134,2]
[311355564,1705067460052,-500.0,0.00023134,2]
[311355565,1705067460062,-572.67,0.00023134,2]
[311355566,1705067460072,-500.0,0.00023134,2]
[311355567,1705067460081,-500.0,0.00023134,2]
[311355568,1705067460090,-500.0,0.00023134,2]
[311355569,1705067460099,-543.4,0.00023134,2]
[311355570,1705067460109,-500.0,0.00023134,2]
[311355571,1705067460121,-500.0,0.00023134,2]
[311355572,1705067460130,-291.82230654,0.00023134,2]
[311355573,1705067460139,-686.86,0.00023134,2]
[311355574,1705067460149,-500.0,0.00023134,2]
[311355575,1705067460159,-500.0,0.00023134,2]
[311355576,1705067460169,-500.0,0.00023134,2]
[311355577,1705067460179,-513.03,0.00023134,2]
[311355578,1705067460188,-500.0,0.00023134,2]
[311355579,1705067460198,-717.1,0.00023134,2]
[311355580,1705067460207,-500.0,0.00023134,2]
[311355581,1705067460217,-915.79,0.00023134,2]
[311355582,1705067460227,-500.0,0.00023134,2]
[311355583,1705067460236,-628.12,0.00023134,2]
[311355584,1705067460245,-500.0,0.00023134,2]
[311355585,1705067460255,-500.0,0.00023134,2]
[311355586,1705067460266,-578.39,0.00023134,2]
[311355587,1705067460276,-500.0,0.00023134,2]
[311355588,1705067460286,-500.0,0.00023134,2]
[311355589,1705067460296,-865.61,0.00023134,2]
[311355590,1705067460306,-500.0,0.00023134,2]
[311355591,1705067460316,-500.0,0.00023134,2]
[311355592,1705067460325,-504.98,0.00023134,2]
[311355593,1705067460335,-500.0,0.00023134,2]
[311355594,1705067460344,-500.0,0.00023134,2]
[311355595,1705067460354,-785.43,0.00023134,2]
[311355596,1705067460364,-500.0,0.00023134,2]
[311355597,1705067460373,-500.0,0.00023134,2]
[311355598,1705067460383,-500.0,0.00023134,2]
[311355599,1705067460392,-500.0,0.00023134,2]
[311355600,1705067460402,-500.0,0.00023134,2]
[311355601,1705067460412,-500.0,0.00023134,2]
[311355602,1705067460421,-592.6,0.00023134,2]
[311355603,1705067460430,-802.88,0.00023134,2]
[311355604,1705067460440,-500.0,0.00023134,2]
[311355605,1705067460450,-1046.21,0.00023134,2]
[311355606,1705067460460,-500.0,0.00023134,2]
[311355607,1705067460470,-319.095659,0.00023134,2]
[311355608,1705067460479,-500.0,0.00023134,2]
[311355609,1705067460489,-1019.63,0.00023134,2]
[311355610,1705067460498,-501.58,0.00023134,2]
[311355611,1705067460507,-500.0,0.00023134,2]
[311355612,1705067460519,-500.0,0.00023134,2]
[311355613,1705067460528,-1762.58,0.00023134,2]
[311355614,1705067460537,-500.0,0.00023134,2]
[311355615,1705067460547,-500.0,0.00023134,2]
[311355616,1705067460556,-742.28,0.00023134,2]
[311355617,1705067460566,-500.0,0.00023134,2]
[311355618,1705067460575,-1000.0,0.00023134,2]
[311355619,1705067460585,-500.0,0.00023134,2]
[311355620,1705067460594,-500.0,0.00023134,2]
[311355621,1705067460603,-500.0,0.00023134,2]
[311355622,1705067460613,-306.7,0.00023134,2]
[311355623,1705067460622,-500.0,0.00023134,2]
[311355624,1705067460631,-551.57,0.00023134,2]
[311355625,1705067460640,-544.63,0.00023134,2]
[311355626,1705067460650,-500.0,0.00023134,2]
[311355627,1705067460659,-500.0,0.00023134,2]
[311355628,1705067460668,-500.0,0.00023134,2]
[311355629,1705067460678,-500.0,0.00023134,2]
[311355630,1705067460687,-500.0,0.00023134,2]
[311355631,1705067460697,-511.99,0.00023134,2]
[311355632,1705067460707,-500.0,0.00023134,2]
[311355633,1705067460716,-500.0,0.00023134,2]
[311355634,1705067460725,-500.0,0.00023134,2]
[311355635,1705067460735,-500.0,0.00023134,2]
[311355636,1705067460744,-513.65,0.00023134,2]
[311355637,1705067460753,-500.0,0.00023134,2]
[311355638,1705067460763,-500.0,0.00023134,2]
[311355639,1705067460773,-500.0,0.00023134,2]
[311355640,1705067460783,-500.0,0.00023134,2]
[311355641,1705067460792,-500.0,0.00023134,2]
[311355642,1705067460802,-500.0,0.00023134,2]
[311355643,1705067460811,-500.0,0.00023134,2]
[311355644,1705067460820,-522.55,0.00023134,2]
[311355645,1705067460830,-683.51,0.00023134,2]
[311355646,1705067460840,-500.0,0.00023134,2]
[311355647,1705067460850,-924.0,0.00023134,2]
[311355648,1705067460860,-500.0,0.00023134,2]
[311355649,1705067460869,-500.0,0.00023134,2]
[311355650,1705067460878,-500.0,0.00023134,2]
[311355651,1705067460888,-500.0,0.00023134,2]
[311355652,1705067460897,-500.0,0.00023134,2]
[311355653,1705067460906,-500.0,0.00023134,2]
[311355654,1705067460915,-677.56,0.00023134,2]
[311355655,1705067460924,-500.0,0.00023134,2]
[311355656,1705067460934,-500.0,0.00023134,2]
[311355657,1705067460943,-500.0,0.00023134,2]
[311355658,1705067460952,-500.0,0.00023134,2]
[311355659,1705067460962,-500.0,0.00023134,2]
[311355660,1705067460971,-500.0,0.00023134,2]
[311355661,1705067460980,-500.0,0.00023134,2]
[311355662,1705067460990,-612.68,0.00023134,2]
[311355663,1705067460999,-500.0,0.00023134,2]
[311355664,1705067461008,-500.0,0.00023134,2]
[311355665,1705067461020,-500.0,0.00023134,2]
[311355666,1705067461030,-500.0,0.00023134,2]
[311355667,1705067461039,-590.15,0.00023134,2]
[311355668,1705067461048,-500.0,0.00023134,2]
[311355669,1705067461058,-500.0,0.00023134,2]
[311355670,1705067461067,-500.0,0.00023134,2]
[311355671,1705067461077,-505.02,0.00023134,2]
[311355672,1705067461086,-500.0,0.00023134,2]
[311355673,1705067461096,-500.0,0.00023134,2]
[311355674,1705067461105,-548.99,0.00023134,2]
[311355675,1705067461115,-500.0,0.00023134,2]
[311355676,1705067461124,-543.6,0.00023134,2]
[311355677,1705067461138,-500.0,0.00023134,2]
[311355678,1705067461148,-632.89,0.00023134,2]
[311355679,1705067461158,-500.0,0.00023134,2]
[311355680,1705067461168,-500.0,0.00023134,2]
[311355681,1705067461178,-500.0,0.00023134,2]
[311355682,1705067461188,-1092.03,0.00023134,2]
[311355683,1705067461198,-710.83,0.00023134,2]
[311355684,1705067461207,-545.64,0.00023134,2]
[311355685,1705067461217,-533.57,0.00023134,2]
[311355686,1705067461227,-500.0,0.00023134,2]
[311355687,1705067461237,-500.0,0.00023134,2]
[311355688,1705067461247,-547.06,0.00023134,2]
[311355689,1705067461256,-1000.44275479,0.00023134,2]
[311355690,1705067461268,-1007.67,0.00023134,2]
[311355691,1705067461278,-1191.64,0.00023134,2]
[311355692,1705067461287,-500.0,0.00023134,2]
[311355693,1705067461297,-653.87,0.00023134,2]
[311355694,1705067461306,-500.0,0.00023134,2]
[311355695,1705067461316,-567.05,0.00023134,2]
[311355696,1705067461325,-616.57,0.00023134,2]
[311355697,1705067461335,-920.08,0.00023134,2]
[311355698,1705067461344,-500.0,0.00023134,2]
[311355699,1705067461354,-500.0,0.00023134,2]
[311355700,1705067461364,-500.0,0.00023134,2]
[311355701,1705067461373,-500.0,0.00023134,2]
[311355702,1705067461382,-500.0,0.00023134,2]
[311355703,1705067461392,-500.0,0.00023134,2]
[311355704,1705067461402,-792.43,0.00023134,2]
[311355705,1705067461411,-500.0,0.00023134,2]
[311355706,1705067461420,-500.0,0.00023134,2]
[311355707,1705067461429,-717.68,0.00023134,2]
[311355708,1705067461438,-500.0,0.00023134,2]
[311355709,1705067461448,-615.74,0.00023134,2]
[311355710,1705067461458,-500.0,0.00023134,2]
[311355711,1705067461467,-500.0,0.00023134,2]
[311355712,1705067461476,-549.71,0.00023134,2]
[311355713,1705067461486,-533.96,0.00023134,2]
[311355714,1705067461495,-500.0,0.00023134,2]
[311355715,1705067461504,-545.26,0.00023134,2]
[311355716,1705067461514,-500.0,0.00023134,2]
[311355717,1705067461525,-500.0,0.00023134,2]
[311355718,1705067461534,-500.0,0.00023134,2]
[311355719,1705067461544,-500.0,0.00023134,2]
[311355720,1705067461553,-526.4,0.00023134,2]
[311355721,1705067461564,-753.76,0.00023134,2]
[311355722,1705067461574,-500.0,0.00023134,2]
[311355723,1705067461587,-500.0,0.00023134,2]
[311355724,1705067461596,-500.0,0.00023134,2]
[311355725,1705067461605,-500.0,0.00023134,2]
[311355726,1705067461615,-500.0,0.00023134,2]
[311355727,1705067461624,-568.06,0.00023134,2]
[311355728,1705067461634,-500.0,0.00023134,2]
[311355729,1705067461644,-500.0,0.00023134,2]
[311355730,1705067461654,-500.0,0.00023134,2]
[311355731,1705067461663,-500.0,0.00023134,2]
[311355732,1705067461672,-500.0,0.00023134,2]
[311355733,1705067461682,-500.0,0.00023134,2]
[311355734,1705067461692,-806.29,0.00023134,2]
[311355735,1705067461701,-500.0,0.00023134,2]
[311355736,1705067461711,-500.0,0.00023134,2]
[311355737,1705067461720,-500.0,0.00023134,2]
[311355738,1705067461730,-500.0,0.00023134,2]
[311355739,1705067461740,-500.0,0.00023134,2]
[311355740,1705067461749,-500.0,0.00023134,2]
[311355741,1705067461759,-222.21,0.00023134,2]
[311355742,1705067461772,-500.0,0.00023134,2]
[311355743,1705067461782,-848.08,0.00023134,2]
[311355744,1705067461795,-500.0,0.00023134,2]
[311355745,1705067461805,-977.29,0.00023134,2]
[311355746,1705067461815,-500.0,0.00023134,2]
[311355747,1705067461825,-500.0,0.00023134,2]
[311355748,1705067461836,-500.0,0.00023134,2]
[311355749,1705067461847,-500.0,0.00023134,2]
[311355750,1705067461857,-500.0,0.00023134,2]
[311355751,1705067461867,-500.0,0.00023134,2]
[311355752,1705067461877,-500.0,0.00023134,2]
[311355753,1705067461887,-516.56,0.00023134,2]
[311355754,1705067461898,-300.0,0.00023134,2]
[311355755,1705067461908,-500.0,0.00023134,2]
[311355756,1705067461918,-500.0,0.00023134,2]
[311355757,1705067461928,-500.0,0.00023134,2]
[311355758,1705067461937,-500.0,0.00023134,2]
[311355759,1705067461947,-764.31,0.00023134,2]
[311355760,1705067461957,-555.48,0.00023134,2]